[Event "Czech Championship U20 Open 2023"]
[Site "Jaromerice nad Rokytnou"]
[Date "2023.03.12"]
[Round "3.6"]
[White "Frank, Adam"]
[Black "Mica, Marek"]
[Result "1-0"]
[ECO "B17"]
[WhiteElo "2391"]
[BlackElo "2248"]
[Annotator "TA"]
[PlyCount "131"]
[EventDate "2023.03.10"]
[EventType "tourn"]
[EventCountry "CZE"]
[SourceTitle "playchess.com"]
[Source "ChessBase"]
[SourceQuality "1"]
[TimeControl "40/5400+30:1800+30"]

{[%evp 32,131,27,0,37,33,29,2,30,27,27,21,26,-106,-94,-101,-73,-63,9,14,33,29,100,33,33,28,108,105,183,106,235,239,240,247,247,140,289,255,652,659,651,607,588,377,373,366,366,364,364,304,327,336,336,311,322,310,333,308,335,279,298,295,272,208,361,361,362,355,303,0,195,0,269,205,353,377,361,354,386,383,386,345,345,345,337,291,387,385,859,861,1619,647,29979,29981,29981,29981,29982,29983,29982,29979,29983,29984]} 1. e4 {[%emt 0:00:02]} c6 {[%emt 0:00:05]} 2. d4 {[%emt 0:00:03]} d5 {[%emt 0:00:04]} 3. Nd2 {[%emt 0:00:03][%cal Bb1d2,Bd2e4,Be4g5][%mdl 32]} dxe4 {[%emt 0:00:05]} 4. Nxe4 {[%emt 0:00:03]} Nd7 {[%emt 0:00:10]} 5. Ng5 {[%emt 0:00:04]} Ngf6 {[%emt 0:00:19]} 6. Bd3 {[%emt 0:00:04]} e6 {[%emt 0:00:14]} 7. Qe2 {[%emt 0:00:04]} Bd6 {[%emt 0:00:08]} 8. N1f3 {[%emt 0:00:03]} h6 {[%emt 0:00:07]} 9. Ne4 {[%emt 0:00:03]} Nxe4 {[%emt 0:00:05]} 10. Qxe4 {[%emt 0:00:03]} Nf6 {[%emt 0:00:07]} 11. Qe2 {[%emt 0:00:02]} Qc7 {[%emt 0:00:08]} 12. Bd2 {[%emt 0:00:27]} b6 {[%emt 0:00:07]} 13. O-O-O {[%emt 0:00:04]} Bb7 {[%emt 0:00:07]} 14. Ne5 {[%emt 0:00:04]} c5 {[%emt 0:00:08]} 15. Bb5+ {[%emt 0:00:28]} Ke7 {[%emt 0:00:06]} 16. dxc5 {[%emt 0:00:07]} Qxc5 {[%emt 0:00:06] [#]} 17. a3 $1 {[%emt 0:00:08] Black must now prevent Bb4.} a5 {[%emt 0:00:06] Against Bb4. B17: Caro-Kann: Modern Line (4...Nd7).} (17... Qxe5 $2 18. Qxe5 Bxe5 19. Bb4+ $18) (17... Bxe5 $2 18. Bb4 Bf4+ 19. Kb1 $18) (17... Qc7 $5 {[%cal Ra7a6]}) (17... Qc7 18. Bf4) 18. f4 {[%emt 0:01:41]} Rhd8 {[%emt 0:01:27] [#]} 19. Rhf1 $146 {[%emt 0:05:31]} (19. Be3 $5 Qc7 $8 20. Kb1 $11) ({Predecessor:} 19. Bd3 Qc7 20. Kb1 Rac8 21. Rhe1 Bd5 22. c4 Bb7 23. g4 Bxe5 24. fxe5 Nxg4 25. Qxg4 {1-0 Bratkovic,J (2212)-Kovacs,A (2006) Senta op 19th 2015 (3)}) 19... Rac8 {[%emt 0:03:06][%csl Gc8][%cal Rc5c2] The position is equal.} 20. Be3 {[%emt 0:18:51] Dancing on a razor blade.} Qc7 {[%emt 0:00:15]} 21. Bd3 {[%emt 0:00:17]} (21. Kb1 {seems wilder.} Be4 22. Nc4 Bc5 23. Bc1) 21... Kf8 {[%emt 0:14:01]} (21... Bxe5 {keeps more tension.} 22. fxe5 Qxe5 23. Bxb6 Rd5) 22. Rde1 {[%emt 0:10:29]} (22. Kb1 $11) 22... b5 {[%emt 0:25:36]} 23. Kb1 {[%emt 0:22:22]} b4 {[%emt 0:20:12]} 24. a4 {[%emt 0:03:21]} b3 {[%emt 0:08:17]} ({Black should try} 24... Be4 $15 25. Nc4 Qc6) 25. cxb3 $11 {[%emt 0:00:59]} Bxe5 {[%emt 0:09:13]} (25... Qb8 {simplifies} 26. Nc4 Ba6 27. Nxd6 Bxd3+ 28. Qxd3 Rxd6 29. Qb5 Qxb5 30. axb5 Rd3) 26. fxe5 {[%emt 0:07:29]} Rxd3 {[%emt 0:03:43]} (26... Qxe5 $11 27. Bb6 Qxe2 28. Bxe2 Bxg2) 27. Rc1 {[%emt 0:10:06]} (27. exf6 $6 Rxb3 28. Rc1 (28. fxg7+ Kg8 $15) 28... Qd7 29. fxg7+ Kg8 30. Rxc8+ (30. Bxh6 Rxc1+ 31. Rxc1 Rb4 $11) 30... Qxc8 31. Bxh6 (31. Qh5 $2 Be4+ 32. Ka2 Qb7 $19) 31... Rb4 $14) (27. Qxd3 $16 Be4 28. Bc5+ Qxc5 29. Rxe4 Nxe4 30. Qxe4) 27... Qd8 {[%emt 0:02:25]} (27... Rxb3 $2 28. Rxc7 (28. exf6 Qd8 $11) 28... Rxc7 29. exf6 $18) (27... Rxe3 $2 28. Qxe3 Qd8 29. Rxc8 Qxc8 30. exf6 $18) 28. Rxc8 {[%emt 0:00:23]} Bxc8 {[%emt 0:02:04]} (28... Qxc8 $11 {remains equal.} 29. exf6 (29. Qxd3 $2 Be4 $19) 29... Rxb3 30. fxg7+ Kg8 31. Bxh6 (31. Qh5 $2 Be4+ 32. Ka2 Qb7 $19) 31... Rb4) 29. exf6 $16 {[%emt 0:00:09]} gxf6 {[%emt 0:01:08]} (29... Kg8 $16) 30. Bxh6+ {[%emt 0:03:13]} (30. Qh5 $18) 30... Ke7 {[%emt 0:00:05]} (30... Ke8 $16) 31. Bg7 $18 {[%emt 0:01:35]} Qd5 {[%emt 0:03:08]} 32. Bxf6+ {[%emt 0:00:04]} Kd7 {[%emt 0:00:38]} 33. Bc3 {[%emt 0:01:31]} (33. Rc1 $18 {Qc2 would kill now.} Rd2 34. Qe1) 33... f5 {[%emt 0:00:29]} (33... Ba6 $16) 34. g4 {[%emt 0:05:27] gxf5 would be deadly.} Ba6 $2 {[%emt 0:03:49]} (34... Qe4 35. Qxe4 fxe4) 35. gxf5 {[%emt 0:00:47]} exf5 {[%emt 0:01:40][%cal Od3c3]} 36. Re1 {[%emt 0:02:09]} Qe4 {[%emt 0:01:33] Dodges Qe8+. ( -> ...Rd1+)} 37. Qxe4 {[%emt 0:00:16]} (37. Bxa5 Rd1+ 38. Ka2 Bxe2 39. Rxe2 Qxe2 40. h4 f4 41. Bc3 f3 42. Ka3 f2 43. Bf6 f1=Q 44. Bg5 Ra1+ 45. Kb4 Qf8+) 37... fxe4 {[%emt 0:00:07]} 38. Rxe4 {[%emt 0:00:03][%mdl 4096] Endgame Rd4+ is the strong threat. KRB-KRB} ({Less strong is} 38. Bxa5 Rxb3 39. Kc1 (39. Rxe4 Bd3+ 40. Ka2 Rxb2+ 41. Kxb2 Bxe4 $11) 39... e3 $16) 38... Rh3 {[%emt 0:00:08] Strongly threatening ...Bd3+.} 39. Rd4+ {[%emt 0:00:07]} (39. Bxa5 $2 {perishes.} Bd3+ 40. Ka2 Bxe4 $19) 39... Kc6 {[%emt 0:00:20]} 40. Rd2 {[%emt 0:00:11]} Bd3+ {[%emt 0:00:34]} 41. Ka2 {[%emt 0:30:04]} Kb6 {[%emt 0:30:07]} 42. Rf2 {[%emt 0:01:16]} Be4 {[%emt 0:00:34]} 43. Ka3 {[%emt 0:00:16]} Bc6 {[%emt 0:00:27]} 44. Rd2 {[%emt 0:01:25]} Ka6 {[%emt 0:00:45]} 45. b4 {[%emt 0:02:27]} ({Don't play} 45. Rd6 Kb6 46. Rf6 Rh5) 45... axb4+ {[%emt 0:00:13]} 46. Kxb4 {[%emt 0:00:03]} Rh4+ {[%emt 0:00:26]} 47. Bd4 {[%emt 0:00:04]} Bd5 $2 {[%emt 0:00:26]} (47... Bd7 {is a better defense.} 48. Ka3 Kb7) 48. Ka3 {[%emt 0:06:39]} Rh3+ {[%emt 0:00:26] [#]} 49. Bc3 $1 {[%emt 0:00:05]} Bc6 {[%emt 0:00:09]} 50. Kb4 {[%emt 0:00:00] Threatens to win with Be5.} Rh4+ {[%emt 0:00:00]} 51. Bd4 {[%emt 0:00:00]} (51. Rd4 $142 Rxh2 52. Rd6 Rh4+ 53. Kc5) 51... Bd5 $1 {[%emt 0:00:00]} 52. b3 {[%emt 0:00:00] And now Ka3 would win.} Rh7 {[%emt 0:00:00]} (52... Be6 $142 53. Ka3 Rh3) 53. Ka3 {[%emt 0:00:00]} Rh3 {[%emt 0:00:00] [#]} 54. Bc3 $1 {[%emt 0:00:00][%mdl 512]} Bc6 {[%emt 0:00:00]} (54... Bc4 55. bxc4) 55. Be5 {[%emt 0:00:00]} Re3 {[%emt 0:00:00]} 56. Bf4 {[%emt 0:00:00]} Rf3 {[%emt 0:00:00]} 57. Rd4 {[%emt 0:00:00]} Be8 {[%emt 0:00:00]} 58. h4 {[%emt 0:00:00]} Kb6 {[%emt 0:00:00]} 59. Re4 {[%emt 0:00:00]} Bf7 $2 {[%emt 0:00:00]} (59... Bh5 60. Be3+ Kc7) 60. Be3+ {[%emt 0:00:00]} Ka6 {[%emt 0:00:00]} 61. Rf4 {[%emt 0:00:00]} Bd5 {[%emt 0:00:00]} 62. Rxf3 {[%emt 0:00:00] White mates.} Bxf3 {[%emt 0:00:00]} 63. b4 {[%emt 0:00:00][%cal Bb3b4,Bb4b5][%mdl 32]} Bd1 {[%emt 0:00:00]} 64. b5+ {[%emt 0:00:00]} Ka5 {[%emt 0:00:00]} 65. Bd2+ {[%emt 0:00:00]} Kb6 {[%emt 0:00:00]} 66. Kb4 {[%emt 0:00:00] Artfully played by Frank.   Weighted Error Value: White=0.35/Black=0.48} 1-0

[Event "Czech Championship U20 Open 2023"]
[Site "Jaromerice nad Rokytnou"]
[Date "2023.03.12"]
[Round "4.1"]
[White "Hlavina, Matous"]
[Black "Mica, Marek"]
[Result "1/2-1/2"]
[ECO "B76"]
[WhiteElo "2091"]
[BlackElo "2248"]
[Annotator "TA"]
[PlyCount "64"]
[EventDate "2023.03.10"]
[EventType "tourn"]
[EventCountry "CZE"]
[SourceTitle "playchess.com"]
[Source "ChessBase"]
[SourceQuality "1"]
[TimeControl "40/5400+30:1800+30"]

{[%evp 19,64,29,63,20,80,45,57,58,59,28,79,62,46,44,61,0,0,0,31,22,42,59,52,56,92,0,0,-18,-7,-4,0,0,0,0,0,0,0,0,16,0,0,0,0,0,0,0,0]} 1. e4 {[%emt 0:02:37]} c5 {[%emt 0:00:06]} 2. Nf3 {[%emt 0:00:09]} d6 {[%emt 0:00:09]} 3. d4 {[%emt 0:00:04]} cxd4 {[%emt 0:00:06]} 4. Nxd4 {[%emt 0:00:04]} Nf6 {[%emt 0:00:07]} 5. Nc3 {[%emt 0:00:21]} g6 {[%emt 0:00:06]} 6. Be3 {[%emt 0:00:18]} Bg7 {[%emt 0:00:06]} 7. f3 {[%emt 0:00:05]} O-O {[%emt 0:00:10]} 8. Qd2 {[%emt 0:00:14]} Nc6 {[%emt 0:00:08]} 9. O-O-O {[%emt 0:00:19]} d5 {[%emt 0:00:21]} 10. Nxc6 {[%emt 0:01:12]} bxc6 {[%emt 0:00:08]} 11. Bc4 {[%emt 0:00:39][%cal Re4d5] White is more active. B76: Sicilian Dragon: Yugoslav Attack, 9 g4 and 9 0-0-0.} Qa5 {[%emt 0:02:56]} (11... e6 $11 {remains equal.}) 12. Bb3 {[%emt 0:06:00][%cal Re4d5]} e6 {[%emt 0:04:02]} 13. Kb1 {[%emt 0:00:45][%cal Rc3d5] Nxd5! would be deadly. White is slightly better.} Qc7 {[%emt 0:01:43]} 14. Bh6 {[%emt 0:04:26] [#]} (14. h4 $5 {[%cal Rh4h5]}) 14... Bb7 $146 {[%emt 0:02:23]} (14... dxe4 $11 15. Bxg7 (15. fxe4 Bxh6 16. Qxh6 Qe5 $11) (15. Nxe4 Nxe4 16. fxe4 Bxh6 $11) 15... Kxg7) ({Predecessor:} 14... Bxh6 15. Qxh6 Nh5 16. Ne2 Ba6 17. Qd2 Bxe2 18. Qxe2 Qe5 19. g3 f5 20. Rhe1 Rfe8 {1-0 Von Hoesslin,H-Arafat,A Wch Seniors 01st 1991 (6)}) 15. Bxg7 {[%emt 0:01:36]} Kxg7 {[%emt 0:00:09]} 16. g4 {[%emt 0:12:31]} Rad8 {[%emt 0:02:51]} 17. Qe3 {[%emt 0:03:25]} (17. Qf2 $14) 17... dxe4 $1 $11 {[%emt 0:09:30]} 18. g5 {[%emt 0:17:36]} Rxd1+ {[%emt 0:06:12][%mdl 64] [#] Remove Defender} 19. Rxd1 {[%emt 0:00:53]} Nd5 {[%emt 0:00:11]} 20. Bxd5 {[%emt 0:02:16]} cxd5 {[%emt 0:00:25]} 21. fxe4 {[%emt 0:00:47]} dxe4 {[%emt 0:00:36] Black is weak on the dark squares} 22. Nxe4 {[%emt 0:01:41]} (22. Qxa7 $16 Rc8 23. h4 (23. Qf2 Bd5 $14)) 22... Qe5 {[%emt 0:02:04] The position is equal.} 23. Qc3 {[%emt 0:02:43]} Qxc3 {[%emt 0:00:42]} 24. Nxc3 {[%emt 0:00:02][%mdl 4096] Endgame KRB-KRN} Bc6 {[%emt 0:00:08] Prevents Rd7} 25. Rd6 {[%emt 0:02:32]} Rc8 {[%emt 0:01:52]} 26. Kc1 {[%emt 0:00:41]} h6 {[%emt 0:00:17]} 27. h4 {[%emt 0:00:30]} hxg5 {[%emt 0:00:11]} 28. hxg5 {[%emt 0:00:01]} Kf8 {[%emt 0:01:20]} 29. Kd2 {[%emt 0:02:23]} Ke7 {[%emt 0:00:33]} 30. Rd4 {[%emt 0:00:53]} Rh8 {[%emt 0:06:13]} 31. Rc4 {[%emt 0:11:07]} Kd6 {[%emt 0:02:45]} 32. Ne4+ {[%emt 0:02:33]} Bxe4 {[%emt 0:08:57] Weighted Error Value: White=0.20 (precise) /Black=0.16 (very precise)} 1/2-1/2

[Event "Czech Championship U20 Open 2023"]
[Site "Jaromerice nad Rokytnou"]
[Date "2023.03.12"]
[Round "4.2"]
[White "Gnojek, Petr"]
[Black "Frank, Adam"]
[Result "1/2-1/2"]
[ECO "A42"]
[WhiteElo "2313"]
[BlackElo "2391"]
[Annotator "TA"]
[PlyCount "90"]
[EventDate "2023.03.10"]
[EventType "tourn"]
[EventCountry "CZE"]
[SourceTitle "playchess.com"]
[Source "ChessBase"]
[SourceQuality "1"]
[TimeControl "40/5400+30:1800+30"]

{[%evp 12,90,39,37,33,24,55,20,76,68,80,54,127,122,135,123,136,63,72,81,76,60,58,0,20,0,0,-63,-58,-61,-51,-68,-60,-62,0,0,0,0,0,0,0,0,0,0,0,0,0,0,-2,-4,0,0,21,0,0,0,0,0,0,-78,-77,-69,0,0,0,0,0,-4,0,-46,-47,-55,-45,-32,0,0,0,0,0,0,0]} 1. d4 {[%emt 0:00:03]} g6 {[%emt 0:00:03]} 2. c4 {[%emt 0:00:05]} Bg7 {[%emt 0:00:03]} 3. Nc3 {[%emt 0:00:12]} d6 {[%emt 0:00:03]} 4. e4 {[%emt 0:00:05]} e5 {[%emt 0:00:03]} 5. Nge2 {[%emt 0:00:47]} Nd7 {[%emt 0:01:10]} 6. Be3 {[%emt 0:00:13]} Ne7 {[%emt 0:02:53]} 7. Qd2 {[%emt 0:04:51]} O-O {[%emt 0:00:35] A42: Modern Defence: Averbakh Variation.} 8. O-O-O $1 {[%emt 0:01:41]} exd4 {[%emt 0:05:36] [#]} (8... a6 {simplifies} 9. h4 h5 10. Ng3 exd4 11. Bxd4 Bxd4 12. Qxd4 Nc5) 9. Bxd4 $146 {[%emt 0:01:06]} ({Predecessor:} 9. Nxd4 Ne5 10. Be2 N7c6 11. h4 Nxd4 12. Bxd4 Be6 13. Nd5 Bxd5 14. cxd5 Nd7 15. Bxg7 Kxg7 16. f4 Re8 17. Bf3 h5 18. g3 Qf6 19. Rhe1 Re7 20. Re3 {½-½ Hoi,C (2380)-Sebastian,D (2442) Bundesliga 1819 2018 (9.2)}) 9... Nc6 {[%emt 0:01:36]} (9... Ne5 $11) 10. Bxg7 $16 {[%emt 0:00:20]} Kxg7 {[%emt 0:00:04]} 11. Nd5 {[%emt 0:02:30]} Nb6 {[%emt 0:21:24]} ({Black should play} 11... Nc5 $14) 12. Nec3 {[%emt 0:01:25] White is more active.} Be6 {[%emt 0:05:57]} 13. h4 {[%emt 0:04:11]} h5 {[%emt 0:00:37]} 14. f3 {[%emt 0:00:10]} ({Better is} 14. Be2 $16) 14... Ne5 $14 {[%emt 0:02:08]} 15. f4 {[%emt 0:10:34]} Ng4 {[%emt 0:04:49]} 16. Qd4+ {[%emt 0:05:11]} Kh7 {[%emt 0:06:24]} 17. Be2 {[%emt 0:17:21]} c5 {[%emt 0:01:53]} 18. Qg1 {[%emt 0:00:06]} (18. Qd2 {seems wilder.} Nf2 19. Nxb6 axb6 20. f5) 18... Nxd5 $1 {[%emt 0:03:07]} 19. exd5 {[%emt 0:02:16]} ({White should try} 19. Nxd5 $11 Bxd5 20. cxd5) 19... Bf5 $15 {[%emt 0:00:40]} 20. Bxg4 {[%emt 0:00:05]} Bxg4 {[%emt 0:00:04]} 21. Re1 {[%emt 0:00:03]} Bf5 {[%emt 0:10:55]} 22. Qe3 {[%emt 0:09:42]} a6 {[%emt 0:01:12]} (22... Kg8 $15) 23. Qe7 $11 {[%emt 0:02:25]} b5 {[%emt 0:02:20]} 24. Qxd8 {[%emt 0:00:22]} Rfxd8 {[%emt 0:00:04]} 25. Re7 {[%emt 0:00:49]} Kg7 {[%emt 0:00:05]} (25... bxc4 26. Rxf7+ Kg8 27. Re7 $14) 26. Rhe1 {[%emt 0:01:37]} bxc4 {[%emt 0:10:15]} 27. Ne4 {[%emt 0:00:12]} Bxe4 {[%emt 0:00:37]} 28. R1xe4 {[%emt 0:03:35][%mdl 4096] Endgame KRR-KRR} Kf6 {[%emt 0:00:30]} 29. Kd2 {[%emt 0:00:37]} Rab8 {[%emt 0:01:23]} 30. Kc3 {[%emt 0:00:34]} Rb4 {[%emt 0:02:26]} 31. Ra7 {[%emt 0:01:16]} Rdb8 {[%emt 0:01:15]} 32. Re2 {[%emt 0:01:09]} (32. Ree7 $5 {[%cal Re7f7]} Kf5 33. Rxa6 Rxb2 34. Rxd6 (34. Rxf7+ Ke4 $11) 34... Rxg2 35. a4 $11 (35. Kxc4 Kg4 $11) (35. Rxf7+ Ke4 $11)) 32... Ra4 {[%emt 0:00:39]} 33. Ree7 {[%emt 0:01:22][%csl Ga7][%cal Re7f7] [#]} Kf5 $1 {[%emt 0:00:05]} 34. Rxf7+ {[%emt 0:00:03]} Ke4 {[%emt 0:00:13]} 35. Rab7 {[%emt 0:02:26]} (35. Rad7 $1 $11 {remains equal.}) 35... Rxb7 $17 {[%emt 0:02:09]} 36. Rxb7 {[%emt 0:00:05]} Rxa2 {[%emt 0:00:18] KR-KR} ({But not} 36... Kxf4 37. a3 $11) (36... Kxd5 $15 37. a3 Ke4) 37. Rg7 $11 {[%emt 0:01:09]} Ra1 {[%emt 0:02:02]} 38. Rxg6 {[%emt 0:00:11]} Kxd5 {[%emt 0:04:43] Strongly threatening ...Rc1+.} 39. Rg5+ {[%emt 0:01:20]} Ke4 {[%emt 0:00:05]} 40. Kxc4 {[%emt 0:00:26]} (40. Rxh5 $11 {feels stronger.} Rc1+ 41. Kd2) 40... Rc1+ $15 {[%emt 0:00:13]} 41. Kb3 {[%emt 0:30:05]} d5 {[%emt 0:37:10]} 42. Re5+ {[%emt 0:03:21]} (42. Rxh5 d4 43. Re5+ Kxf4 $17) 42... Kxf4 {[%emt 0:00:07]} 43. Rxd5 {[%emt 0:00:06] The position is equal.} Kg4 {[%emt 0:00:03]} 44. g3 {[%emt 0:00:10]} c4+ {[%emt 0:01:39]} 45. Kb4 {[%emt 0:01:28]} Rc2 {[%emt 0:00:16] Weighted Error Value: White=0.15 (very precise) /Black=0.11 (very precise)} 1/2-1/2

[Event "Czech Championship U20 Open 2023"]
[Site "Jaromerice nad Rokytnou"]
[Date "2023.03.12"]
[Round "4.3"]
[White "Smolik, Jachym"]
[Black "Kubiczek, Michal"]
[Result "1-0"]
[ECO "A43"]
[WhiteElo "2297"]
[BlackElo "2087"]
[Annotator "TA"]
[PlyCount "43"]
[EventDate "2023.03.10"]
[EventType "tourn"]
[EventCountry "CZE"]
[SourceTitle "playchess.com"]
[Source "ChessBase"]
[SourceQuality "1"]
[TimeControl "40/5400+30:1800+30"]

{[%evp 9,43,8,47,55,112,110,146,151,133,145,118,151,185,172,205,205,205,197,197,205,207,203,207,195,184,197,275,275,287,274,1160,1090,1295,981,1320,1302]} 1. d4 {[%emt 0:02:17]} Nf6 {[%emt 0:00:14]} 2. Nf3 {[%emt 0:00:05]} c5 {[%emt 0:00:45]} 3. d5 {[%emt 0:00:03]} b5 {[%emt 0:01:17]} 4. e4 {[%emt 0:00:07]} Nxe4 {[%emt 0:05:42]} 5. Bd3 {[%emt 0:00:06][%cal Bf1d3,Bd3b5,Bb5a4][%mdl 32]} Nf6 {[%emt 0:08:58]} 6. Bxb5 {[%emt 0:00:16] [#] A43: Schmid Benoni.} Qb6 $146 {[%emt 0:02:52]} (6... g6 $14) ({Predecessor:} 6... g6 7. O-O Bg7 8. c4 O-O 9. Nc3 d6 10. Re1 Nbd7 11. Bc6 Rb8 12. h3 Nb6 {½-½ Le,Q (2709)-Ponkratov,P (2624) Chess.com Rapid Wk16 Swiss 2022 (5)}) 7. c4 $16 {[%emt 0:06:28]} e6 {[%emt 0:06:03][%cal Of6d5]} 8. Nc3 {[%emt 0:03:12] White is clearly better.} Be7 {[%emt 0:03:28]} 9. O-O {[%emt 0:00:10] White is more active.} O-O {[%emt 0:01:08]} 10. Re1 {[%emt 0:04:53]} a6 {[%emt 0:16:55]} 11. Ba4 {[%emt 0:00:19]} Qc7 {[%emt 0:04:39]} 12. Qd3 {[%emt 0:03:07]} d6 {[%emt 0:01:24] [#]} 13. dxe6 $1 {[%emt 0:05:10]} Bxe6 {[%emt 0:01:05]} 14. Ng5 {[%emt 0:02:15]} Nc6 {[%emt 0:10:01]} 15. Bxc6 $40 {[%emt 0:09:22][%mdl 128] White goes for the king.} Qxc6 {[%emt 0:00:13]} 16. Nxe6 {[%emt 0:00:04]} fxe6 {[%emt 0:00:07]} 17. Rxe6 {[%emt 0:00:08]} Rf7 {[%emt 0:01:37]} (17... Qd7 {was necessary.} 18. Re2 Rae8) 18. Bg5 $18 {[%emt 0:03:57]} Raf8 {[%emt 0:16:04]} 19. Rae1 {[%emt 0:02:58]} Ng4 $2 {[%emt 0:01:02] [#]} (19... Qb7 20. Qe2 h6) 20. Bxe7 {[%emt 0:06:39] White is clearly winning.} Rxf2 {[%emt 0:00:48]} 21. Qd5 {[%emt 0:00:11]} (21. Qxd6 $2 Qxg2#) 21... Ne3 {[%emt 0:11:17]} 22. R6xe3+ {[%emt 0:00:11] Black did not feel at home in the position after the opening.   Weighted Error Value: White=0.04 (flawless) /Black=0.28 (precise)} (22. Qxc6 $2 {leads to mate.} Rf1+ {[%mdl 64] Back Rank} 23. Rxf1 Rxf1#) 1-0

[Event "Czech Championship U20 Open 2023"]
[Site "Jaromerice nad Rokytnou"]
[Date "2023.03.12"]
[Round "4.4"]
[White "Svanda, Ondrej"]
[Black "Jun, Rudolf"]
[Result "1/2-1/2"]
[ECO "B22"]
[WhiteElo "2366"]
[BlackElo "2152"]
[Annotator "TA"]
[PlyCount "94"]
[EventDate "2023.03.10"]
[EventType "tourn"]
[EventCountry "CZE"]
[SourceTitle "playchess.com"]
[Source "ChessBase"]
[SourceQuality "1"]
[TimeControl "40/5400+30:1800+30"]

{[%evp 20,94,20,16,81,72,84,18,39,44,25,47,31,25,30,36,35,32,35,30,27,27,27,27,27,27,31,27,29,42,34,43,36,43,50,0,0,0,0,0,0,0,0,0,0,0,0,0,0,0,0,0,0,0,0,0,0,0,0,0,0,0,0,0,0,0,0,0,0,0,0,0,0,0,0,0,0]} 1. e4 {[%emt 0:00:03]} c5 {[%emt 0:00:07]} 2. c3 {[%emt 0:00:03]} d5 {[%emt 0:00:28]} 3. exd5 {[%emt 0:00:01]} Qxd5 {[%emt 0:00:10]} 4. d4 {[%emt 0:00:02]} e5 {[%emt 0:00:23]} 5. Nf3 {[%emt 0:04:32]} Bg4 {[%emt 0:02:29]} 6. dxe5 {[%emt 0:19:40]} Qxd1+ {[%emt 0:01:46]} 7. Kxd1 {[%emt 0:00:06]} Nc6 {[%emt 0:00:20]} 8. Bf4 {[%emt 0:00:03]} O-O-O+ {[%emt 0:00:50]} 9. Nbd2 {[%emt 0:03:40]} Nge7 {[%emt 0:02:01]} 10. Kc1 {[%emt 0:02:26]} Ng6 {[%emt 0:01:46]} 11. Bg3 {[%emt 0:00:03]} f5 {[%emt 0:03:16] B22: Sicilian: 2 c3.} (11... f6 $1 $11 {keeps the balance.}) 12. h3 $16 {[%emt 0:06:19]} f4 {[%emt 0:04:58] [#] aiming for ...Bxf3.} 13. Bh2 {[%emt 0:00:01]} (13. hxg4 $16 fxg3 14. fxg3) 13... Bd7 {[%emt 0:02:03]} 14. Bc4 {[%emt 0:08:01]} Ncxe5 {[%emt 0:04:07]} 15. Nxe5 {[%emt 0:02:41]} Nxe5 {[%emt 0:00:07]} 16. Bxf4 {[%emt 0:00:06] [#]} Nxc4 $146 {[%emt 0:02:50]} ({Predecessor:} 16... Bd6 17. Ne4 Nxc4 18. Nxd6+ Nxd6 19. Bxd6 b6 20. Be7 Rde8 21. Re1 Bxh3 22. gxh3 Kd7 {½-½ Terao,R (2364)-Toth,C (2365) Osasco 50 Years 2012 (2)}) 17. Nxc4 {[%emt 0:00:05]} Bc6 {[%emt 0:01:57] Black is weak on the dark squares} 18. f3 {[%emt 0:01:27]} Bb5 {[%emt 0:01:44]} 19. b3 {[%emt 0:04:08]} Bxc4 {[%emt 0:01:03]} 20. bxc4 {[%emt 0:00:01]} Bd6 {[%emt 0:00:11]} 21. Bxd6 {[%emt 0:02:58]} Rxd6 $11 {[%emt 0:02:09][%mdl 4096] Endgame KRR-KRR} 22. Rd1 {[%emt 0:02:10]} Rhd8 {[%emt 0:01:16]} 23. Kc2 {[%emt 0:05:17]} Rg6 {[%emt 0:03:01]} 24. Rxd8+ {[%emt 0:00:23]} Kxd8 {[%emt 0:00:07] KR-KR} 25. Rd1+ {[%emt 0:00:01]} Ke7 {[%emt 0:00:53]} 26. Rd2 {[%emt 0:00:07]} Ra6 {[%emt 0:00:26]} 27. Kd3 {[%emt 0:00:05]} (27. Re2+ $14 Kd7 28. Kb1) 27... Rd6+ {[%emt 0:00:47] The position is equal.} 28. Ke3 {[%emt 0:01:13] [#] Threatens to win with Rxd6.} Re6+ {[%emt 0:00:32]} 29. Kf2 {[%emt 0:00:00] And now Re2 would win.} Ra6 {[%emt 0:00:07]} 30. Rb2 {[%emt 0:00:07]} b6 {[%emt 0:03:12]} 31. Ke3 {[%emt 0:00:22]} Ra4 {[%emt 0:00:32]} 32. Kd3 {[%emt 0:00:05]} Kf6 {[%emt 0:00:36]} 33. g3 {[%emt 0:01:12]} h6 {[%emt 0:06:18]} 34. Re2 {[%emt 0:00:03]} g6 {[%emt 0:00:48]} 35. Rf2 {[%emt 0:00:36]} Kf5 {[%emt 0:00:44]} 36. Rg2 {[%emt 0:01:22]} Ra3 {[%emt 0:02:40]} 37. h4 {[%emt 0:00:37]} Ra4 {[%emt 0:00:37]} 38. Re2 {[%emt 0:00:20]} Ra3 {[%emt 0:03:17]} 39. Rh2 {[%emt 0:00:35]} Ra4 {[%emt 0:01:15]} 40. h5 {[%emt 0:01:30]} g5 {[%emt 0:00:45][%cal Bg6g5,Bg5g4][%mdl 32]} 41. Re2 {[%emt 0:30:58]} g4 {[%emt 0:35:49]} 42. f4 {[%emt 0:01:03]} Kf6 {[%emt 0:00:39]} 43. Rd2 {[%emt 0:05:49]} Ke6 {[%emt 0:00:42]} 44. Re2+ {[%emt 0:04:49]} Kf6 {[%emt 0:00:08]} 45. Rd2 {[%emt 0:01:09]} Ke6 {[%emt 0:00:15]} 46. Re2+ {[%emt 0:00:02]} Kf6 {[%emt 0:00:11]} 47. Rd2 {[%emt 0:00:01]} Ke6 {[%emt 0:00:07] Weighted Error Value: White=0.07 (flawless) /Black=0.06 (flawless)} 1/2-1/2